[Event "*** Titled Tuesday Blitz"]
[Site "Chess.com"]
[Date "2020.04.28"]
[Round "2"]
[White "michaelk123"]
[Black "almo64"]
[Result "0-1"]
[WhiteElo "2524"]
[BlackElo "2803"]
[TimeControl "180+1"]
[EndTime "10:19:09 PDT"]
[Termination "almo64 won on time"]

1. e4 {[%clk 0:03:00.9]} 1... c5 {[%clk 0:02:59.6]} 2. Nf3 {[%clk 0:02:56.1]}
2... Nc6 {[%clk 0:02:59.9]} 3. Bb5 {[%clk 0:02:55.3]} 3... g6 {[%clk 0:03:00]}
4. Bxc6 {[%clk 0:02:54.2]} 4... dxc6 {[%clk 0:02:59.9]} 5. d3 {[%clk 0:02:54.9]}
5... Bg7 {[%clk 0:03:00.1]} 6. h3 {[%clk 0:02:54.2]} 6... e5 {[%clk 0:02:59.2]}
7. Be3 {[%clk 0:02:51.5]} 7... Qe7 {[%clk 0:02:59.4]} 8. Nc3 {[%clk 0:02:41.2]}
8... Nf6 {[%clk 0:02:57.9]} 9. Qd2 {[%clk 0:02:40.8]} 9... O-O {[%clk 0:02:58]}
10. Bh6 {[%clk 0:02:40.1]} 10... b5 {[%clk 0:02:56.1]} 11. O-O {[%clk
0:02:36.1]} 11... Rd8 {[%clk 0:02:54.8]} 12. Bxg7 {[%clk 0:02:34.1]} 12... Kxg7
{[%clk 0:02:55.1]} 13. Qe3 {[%clk 0:02:30.2]} 13... Nh5 {[%clk 0:02:41.4]} 14.
Ne2 {[%clk 0:02:18.7]} 14... Kg8 {[%clk 0:02:19.7]} 15. Nd2 {[%clk 0:02:18.6]}
15... Be6 {[%clk 0:02:00.4]} 16. f4 {[%clk 0:02:18.1]} 16... exf4 {[%clk
0:01:59.9]} 17. Nxf4 {[%clk 0:02:18.5]} 17... Qg5 {[%clk 0:01:55.4]} 18. Qf2
{[%clk 0:02:06.9]} 18... Nxf4 {[%clk 0:01:53.4]} 19. Qxf4 {[%clk 0:02:07.1]}
19... Qxf4 {[%clk 0:01:53.1]} 20. Rxf4 {[%clk 0:02:08]} 20... c4 {[%clk
0:01:53.6]} 21. Rf3 {[%clk 0:02:01.4]} 21... cxd3 {[%clk 0:01:43.1]} 22. cxd3
{[%clk 0:01:56.8]} 22... c5 {[%clk 0:01:43.4]} 23. Nb3 {[%clk 0:01:33.1]} 23...
Rac8 {[%clk 0:01:38.5]} 24. Kf2 {[%clk 0:01:31.8]} 24... c4 {[%clk 0:01:37.5]}
25. Nd2 {[%clk 0:00:59.4]} 25... cxd3 {[%clk 0:01:36.3]} 26. Ke3 {[%clk
0:00:55.6]} 26... Rc2 {[%clk 0:01:36.4]} 27. Rff1 {[%clk 0:00:52.4]} 27... Rxb2
{[%clk 0:01:35.5]} 28. Rfb1 {[%clk 0:00:52.4]} 28... Rxb1 {[%clk 0:01:23.1]} 29.
Rxb1 {[%clk 0:00:52.1]} 29... a6 {[%clk 0:01:23.5]} 30. Rc1 {[%clk 0:00:48.5]}
30... Bxa2 {[%clk 0:01:21.5]} 31. Ra1 {[%clk 0:00:48.3]} 31... Be6 {[%clk
0:01:18.1]} 32. Rxa6 {[%clk 0:00:48.1]} 32... Rb8 {[%clk 0:01:13.6]} 33. Kxd3
{[%clk 0:00:43.3]} 33... b4 {[%clk 0:01:14.1]} 34. Kc2 {[%clk 0:00:42.9]} 34...
Rc8+ {[%clk 0:01:10.7]} 35. Kb2 {[%clk 0:00:40.8]} 35... b3 {[%clk 0:01:05.6]}
36. Rd6 {[%clk 0:00:40.2]} 36... Rc2+ {[%clk 0:01:04.6]} 37. Kb1 {[%clk
0:00:40]} 37... Kg7 {[%clk 0:01:02.8]} 38. Rd3 {[%clk 0:00:35.9]} 38... Kf6
{[%clk 0:00:59.9]} 39. g3 {[%clk 0:00:33.7]} 39... Bxh3 {[%clk 0:00:51.9]} 40.
Nxb3 {[%clk 0:00:29.8]} 40... Rc4 {[%clk 0:00:49.6]} 41. Nd2 {[%clk 0:00:27.2]}
41... Rc5 {[%clk 0:00:45.5]} 42. Rf3+ {[%clk 0:00:25.3]} 42... Ke7 {[%clk
0:00:44]} 43. Nb3 {[%clk 0:00:21.3]} 43... Rc4 {[%clk 0:00:42.2]} 44. Nd2 {[%clk
0:00:20.4]} 44... Rc7 {[%clk 0:00:41.4]} 45. Rf4 {[%clk 0:00:19.5]} 45... Be6
{[%clk 0:00:40.4]} 46. Kb2 {[%clk 0:00:18.4]} 46... h5 {[%clk 0:00:39.4]} 47.
Rf3 {[%clk 0:00:18.1]} 47... Rc5 {[%clk 0:00:38.9]} 48. Rc3 {[%clk 0:00:18]}
48... Rxc3 {[%clk 0:00:24.2]} 49. Kxc3 {[%clk 0:00:18.3]} 49... Kf6 {[%clk
0:00:24.7]} 50. Kd4 {[%clk 0:00:18.6]} 50... Kg5 {[%clk 0:00:25]} 51. Ke3 {[%clk
0:00:19]} 51... Kg4 {[%clk 0:00:25.4]} 52. Kf2 {[%clk 0:00:19.2]} 52... g5
{[%clk 0:00:23.6]} 53. Nf1 {[%clk 0:00:19]} 53... h4 {[%clk 0:00:21.7]} 54. Ne3+
{[%clk 0:00:18.1]} 54... Kh5 {[%clk 0:00:20.9]} 55. gxh4 {[%clk 0:00:18]} 55...
gxh4 {[%clk 0:00:20.9]} 56. e5 {[%clk 0:00:10.3]} 56... Kg5 {[%clk 0:00:21.1]}
57. Kf3 {[%clk 0:00:09.1]} 57... Bd7 {[%clk 0:00:20.8]} 58. Kf2 {[%clk
0:00:04.4]} 58... Bc6 {[%clk 0:00:16.8]} 59. Nc4 {[%clk 0:00:03.9]} 59... Kf4
{[%clk 0:00:16.4]} 60. Nd6 {[%clk 0:00:03.8]} 60... Bd5 {[%clk 0:00:15.2]} 61.
Ne8 {[%clk 0:00:02.5]} 61... Kxe5 {[%clk 0:00:14.6]} 62. Ng7 {[%clk 0:00:02.7]}
62... Kf4 {[%clk 0:00:14]} 63. Ne8 {[%clk 0:00:02]} 63... h3 {[%clk 0:00:12.4]}
64. Nf6 {[%clk 0:00:01.9]} 64... Bc6 {[%clk 0:00:12]} 65. Nh5+ {[%clk
0:00:01.6]} 65... Kg5 {[%clk 0:00:10.1]} 0-1

[Event "*** Titled Tuesday Blitz"]
[Site "Chess.com"]
[Date "2020.04.28"]
[Round "2"]
[White "eljanov"]
[Black "mikolka1985"]
[Result "1/2-1/2"]
[WhiteElo "2885"]
[BlackElo "2581"]
[TimeControl "180+1"]
[EndTime "10:19:10 PDT"]
[Termination "Game drawn by repetition"]

1. Nf3 {[%clk 0:03:00.9]} 1... Nf6 {[%clk 0:02:58.9]} 2. g3 {[%clk 0:03:01]}
2... b6 {[%clk 0:02:57.8]} 3. Bg2 {[%clk 0:03:01.4]} 3... Bb7 {[%clk 0:02:57.3]}
4. O-O {[%clk 0:03:02]} 4... e6 {[%clk 0:02:56.9]} 5. d4 {[%clk 0:03:02.2]} 5...
Be7 {[%clk 0:02:56.2]} 6. c4 {[%clk 0:03:02.4]} 6... O-O {[%clk 0:02:55.6]} 7.
Re1 {[%clk 0:03:02.8]} 7... d5 {[%clk 0:02:43.8]} 8. cxd5 {[%clk 0:03:02.2]}
8... exd5 {[%clk 0:02:43.2]} 9. Nc3 {[%clk 0:03:02.8]} 9... Nbd7 {[%clk
0:02:42.5]} 10. Bf4 {[%clk 0:02:57.5]} 10... c5 {[%clk 0:02:41.7]} 11. dxc5
{[%clk 0:02:53.6]} 11... Nxc5 {[%clk 0:02:40.5]} 12. Be5 {[%clk 0:02:53.8]}
12... Nfe4 {[%clk 0:02:37.4]} 13. Rc1 {[%clk 0:02:45]} 13... Re8 {[%clk
0:02:36.5]} 14. Bd4 {[%clk 0:02:28.7]} 14... Bf8 {[%clk 0:02:34.2]} 15. e3
{[%clk 0:02:24.2]} 15... Ne6 {[%clk 0:02:29.3]} 16. a3 {[%clk 0:02:04.3]} 16...
Rc8 {[%clk 0:02:26.1]} 17. Ne2 {[%clk 0:02:04.3]} 17... Re7 {[%clk 0:02:24]} 18.
Bh3 {[%clk 0:01:46.6]} 18... Rxc1 {[%clk 0:02:17.6]} 19. Qxc1 {[%clk 0:01:46.5]}
19... N6c5 {[%clk 0:02:09.5]} 20. Qb1 {[%clk 0:01:28.9]} 20... Ne6 {[%clk
0:01:59.9]} 21. Rd1 {[%clk 0:01:25.2]} 21... Ba6 {[%clk 0:01:52.2]} 22. Nc3
{[%clk 0:01:18.4]} 22... Nxd4 {[%clk 0:01:45]} 23. Nxd4 {[%clk 0:01:08.8]} 23...
Nxc3 {[%clk 0:01:43.8]} 24. bxc3 {[%clk 0:01:07.9]} 24... Rc7 {[%clk 0:01:43]}
25. Nb5 {[%clk 0:01:03.5]} 25... Rc5 {[%clk 0:01:30.3]} 26. a4 {[%clk
0:01:03.4]} 26... Qe8 {[%clk 0:01:03.2]} 27. Bf1 {[%clk 0:01:01]} 27... Qe7
{[%clk 0:00:54]} 28. Qa2 {[%clk 0:00:46.8]} 28... Bc8 {[%clk 0:00:51.5]} 29. Bg2
{[%clk 0:00:33.8]} 29... Be6 {[%clk 0:00:44.5]} 30. Qd2 {[%clk 0:00:28.2]} 30...
Qd7 {[%clk 0:00:36.7]} 31. Ra1 {[%clk 0:00:20.9]} 31... Bg4 {[%clk 0:00:28.9]}
32. Nd4 {[%clk 0:00:15.3]} 32... Rc4 {[%clk 0:00:27.3]} 33. a5 {[%clk
0:00:14.7]} 33... bxa5 {[%clk 0:00:21.6]} 34. Rxa5 {[%clk 0:00:14.1]} 34... Qc7
{[%clk 0:00:21.7]} 35. Rxd5 {[%clk 0:00:11.2]} 35... Rxc3 {[%clk 0:00:20.8]} 36.
h3 {[%clk 0:00:11.6]} 36... Rc1+ {[%clk 0:00:19.9]} 37. Kh2 {[%clk 0:00:11.6]}
37... Bc8 {[%clk 0:00:17.3]} 38. Nb5 {[%clk 0:00:11.3]} 38... Qc2 {[%clk
0:00:15.9]} 39. Qxc2 {[%clk 0:00:10.2]} 39... Rxc2 {[%clk 0:00:14.4]} 40. Rd8
{[%clk 0:00:10.6]} 40... Be6 {[%clk 0:00:12.7]} 41. Nd4 {[%clk 0:00:08.7]} 41...
Rxf2 {[%clk 0:00:11.1]} 42. Kg1 {[%clk 0:00:05.6]} 42... Ra2 {[%clk 0:00:09.6]}
43. Nxe6 {[%clk 0:00:03.9]} 43... fxe6 {[%clk 0:00:08.7]} 44. h4 {[%clk
0:00:03.1]} 44... Kf7 {[%clk 0:00:07.4]} 45. Rd7+ {[%clk 0:00:01.6]} 45... Be7
{[%clk 0:00:07.1]} 46. Bh3 {[%clk 0:00:01.2]} 46... a5 {[%clk 0:00:06.4]} 47.
Rb7 {[%clk 0:00:02.1]} 47... a4 {[%clk 0:00:04.6]} 48. Rb6 {[%clk 0:00:02.5]}
48... Bc5 {[%clk 0:00:02.5]} 49. Bxe6+ {[%clk 0:00:02]} 49... Ke7 {[%clk
0:00:02.4]} 50. Bxa2 {[%clk 0:00:02.1]} 50... Bxe3+ {[%clk 0:00:01.9]} 51. Kg2
{[%clk 0:00:02.6]} 51... Bxb6 {[%clk 0:00:02.7]} 52. Kf3 {[%clk 0:00:03.1]}
52... a3 {[%clk 0:00:03.1]} 53. Ke4 {[%clk 0:00:03.2]} 53... Kd6 {[%clk
0:00:03.7]} 54. g4 {[%clk 0:00:03.7]} 54... Kc5 {[%clk 0:00:04.2]} 55. h5 {[%clk
0:00:02.9]} 55... Kb4 {[%clk 0:00:04.5]} 56. Kd3 {[%clk 0:00:03.4]} 56... Bd8
{[%clk 0:00:03.3]} 57. Bg8 {[%clk 0:00:03.4]} 57... h6 {[%clk 0:00:02.5]} 58.
Bf7 {[%clk 0:00:04]} 58... Bg5 {[%clk 0:00:02.9]} 59. Ba2 {[%clk 0:00:04]} 59...
Bf6 {[%clk 0:00:03.8]} 60. Bd5 {[%clk 0:00:03.3]} 60... Bg5 {[%clk 0:00:04.7]}
61. Ba2 {[%clk 0:00:03.8]} 61... Bf6 {[%clk 0:00:05.2]} 62. Be6 {[%clk
0:00:04.4]} 62... Bg5 {[%clk 0:00:05.4]} 63. Ba2 {[%clk 0:00:04.9]} 1/2-1/2

[Event "*** Titled Tuesday Blitz"]
[Site "Chess.com"]
[Date "2020.04.28"]
[Round "2"]
[White "Dedic8"]
[Black "RodinMihail"]
[Result "0-1"]
[WhiteElo "2782"]
[BlackElo "2538"]
[TimeControl "180+1"]
[EndTime "10:19:10 PDT"]
[Termination "RodinMihail won by resignation"]

1. e4 {[%clk 0:03:00.9]} 1... e5 {[%clk 0:03:00.2]} 2. Nf3 {[%clk 0:03:00.8]}
2... Nc6 {[%clk 0:03:00.8]} 3. Bb5 {[%clk 0:03:01.2]} 3... a6 {[%clk 0:03:01.3]}
4. Ba4 {[%clk 0:03:01.7]} 4... Bc5 {[%clk 0:03:01.3]} 5. c3 {[%clk 0:03:01.1]}
5... Nge7 {[%clk 0:03:01.1]} 6. d4 {[%clk 0:03:01.1]} 6... exd4 {[%clk 0:03:02]}
7. cxd4 {[%clk 0:03:01.3]} 7... Bb4+ {[%clk 0:03:02.3]} 8. Nc3 {[%clk
0:03:01.1]} 8... d5 {[%clk 0:03:02.3]} 9. exd5 {[%clk 0:03:00.1]} 9... Nxd5
{[%clk 0:03:02.1]} 10. Bxc6+ {[%clk 0:03:00.2]} 10... bxc6 {[%clk 0:03:01.9]}
11. O-O {[%clk 0:02:59.8]} 11... O-O {[%clk 0:03:01.7]} 12. Qc2 {[%clk
0:02:56.3]} 12... h6 {[%clk 0:02:55.2]} 13. a3 {[%clk 0:02:55.4]} 13... Bd6
{[%clk 0:02:52.2]} 14. Bd2 {[%clk 0:02:49.1]} 14... Bg4 {[%clk 0:02:45.8]} 15.
Ne5 {[%clk 0:02:48.8]} 15... Be6 {[%clk 0:02:33.7]} 16. Nxc6 {[%clk 0:02:40.5]}
16... Qh4 {[%clk 0:02:27.7]} 17. g3 {[%clk 0:02:34.9]} 17... Qh3 {[%clk
0:02:27.5]} 18. Qe4 {[%clk 0:01:31.1]} 18... Nf6 {[%clk 0:02:12.2]} 19. Qg2
{[%clk 0:01:14.5]} 19... Qh5 {[%clk 0:02:11.3]} 20. h4 {[%clk 0:01:09.5]} 20...
Bg4 {[%clk 0:01:54.3]} 21. f3 {[%clk 0:01:08.9]} 21... Bd7 {[%clk 0:01:49.8]}
22. Ne5 {[%clk 0:01:03.4]} 22... Bxe5 {[%clk 0:01:47.1]} 23. dxe5 {[%clk
0:01:03.8]} 23... Qxe5 {[%clk 0:01:47.7]} 24. Rae1 {[%clk 0:01:02.7]} 24... Qh5
{[%clk 0:01:32.2]} 25. Bf4 {[%clk 0:01:00.5]} 25... Nd5 {[%clk 0:01:24.5]} 26.
Re5 {[%clk 0:00:49.3]} 26... Nxf4 {[%clk 0:01:24.2]} 27. Rxh5 {[%clk 0:00:50]}
27... Nxg2 {[%clk 0:01:24]} 28. Kxg2 {[%clk 0:00:50.9]} 28... f5 {[%clk
0:01:21.7]} 29. Nd5 {[%clk 0:00:46.6]} 29... Kh7 {[%clk 0:01:11.3]} 30. Rc1
{[%clk 0:00:30.5]} 30... Be8 {[%clk 0:00:54.4]} 31. g4 {[%clk 0:00:29.6]} 31...
Bxh5 {[%clk 0:00:49.7]} 32. gxh5 {[%clk 0:00:29.7]} 32... Rad8 {[%clk
0:00:49.3]} 33. Nf4 {[%clk 0:00:26.4]} 33... Rf7 {[%clk 0:00:47.8]} 34. Kg3
{[%clk 0:00:24.9]} 34... Rd2 {[%clk 0:00:47.3]} 35. Re1 {[%clk 0:00:22.4]} 35...
Rxb2 {[%clk 0:00:36.1]} 36. Re8 {[%clk 0:00:22.5]} 36... Rb6 {[%clk 0:00:36.1]}
37. Ne6 {[%clk 0:00:20]} 37... Rxe6 {[%clk 0:00:30.3]} 38. Rxe6 {[%clk 0:00:20]}
38... Rf6 {[%clk 0:00:30.9]} 39. Re7 {[%clk 0:00:10.5]} 39... Rc6 {[%clk
0:00:31.1]} 40. Kf4 {[%clk 0:00:10.9]} 40... Rc5 {[%clk 0:00:30.6]} 41. a4
{[%clk 0:00:09.9]} 41... a5 {[%clk 0:00:30.8]} 42. Rf7 {[%clk 0:00:08.9]} 42...
Kg8 {[%clk 0:00:28.6]} 43. Rd7 {[%clk 0:00:08.2]} 43... Kf8 {[%clk 0:00:26.4]}
44. Kg3 {[%clk 0:00:07.3]} 44... Rc4 {[%clk 0:00:25.4]} 45. Kh3 {[%clk
0:00:04.1]} 45... c5 {[%clk 0:00:24.6]} 46. Ra7 {[%clk 0:00:02.8]} 46... Rxa4
{[%clk 0:00:24.4]} 47. Kg3 {[%clk 0:00:03]} 47... c4 {[%clk 0:00:23.1]} 48. Rc7
{[%clk 0:00:03.1]} 48... Rb4 {[%clk 0:00:23.4]} 49. Kf4 {[%clk 0:00:03.8]} 49...
a4 {[%clk 0:00:22.7]} 50. Kxf5 {[%clk 0:00:04.2]} 50... a3 {[%clk 0:00:22.9]}
51. Ra7 {[%clk 0:00:03.6]} 51... c3 {[%clk 0:00:21.7]} 52. Rxa3 {[%clk
0:00:01.8]} 52... Rc4 {[%clk 0:00:22.3]} 53. Ra1 {[%clk 0:00:02.1]} 53... c2
{[%clk 0:00:22.4]} 54. Rc1 {[%clk 0:00:02.7]} 54... Rc6 {[%clk 0:00:20.1]} 55.
Ke5 {[%clk 0:00:02.8]} 55... Ke7 {[%clk 0:00:20.4]} 56. Kd5 {[%clk 0:00:03.3]}
56... Rc8 {[%clk 0:00:20.4]} 57. Ke4 {[%clk 0:00:03.9]} 57... Kf6 {[%clk
0:00:20.5]} 58. Kd3 {[%clk 0:00:04.6]} 58... Kf5 {[%clk 0:00:20.4]} 59. Rxc2
{[%clk 0:00:04.7]} 59... Rxc2 {[%clk 0:00:20.3]} 60. Kxc2 {[%clk 0:00:05.6]}
60... Kf4 {[%clk 0:00:21.1]} 61. Kd3 {[%clk 0:00:05.3]} 61... Kxf3 {[%clk
0:00:21.8]} 62. Kd4 {[%clk 0:00:05.3]} 62... Kg4 {[%clk 0:00:22.5]} 63. Ke5
{[%clk 0:00:05.6]} 63... Kxh5 {[%clk 0:00:22.8]} 64. Kf5 {[%clk 0:00:06.3]}
64... Kxh4 {[%clk 0:00:23.1]} 65. Kg6 {[%clk 0:00:07]} 65... Kg4 {[%clk
0:00:22.5]} 66. Kxg7 {[%clk 0:00:07.1]} 66... h5 {[%clk 0:00:23.4]} 0-1

[Event "*** Titled Tuesday Blitz"]
[Site "Chess.com"]
[Date "2020.04.28"]
[Round "2"]
[White "kushagramohan"]
[Black "Trankuilizer"]
[Result "1/2-1/2"]
[WhiteElo "2704"]
[BlackElo "2487"]
[TimeControl "180+1"]
[EndTime "10:19:10 PDT"]
[Termination "Game drawn by repetition"]

1. e4 {[%clk 0:03:00.9]} 1... e5 {[%clk 0:02:59.8]} 2. Nf3 {[%clk 0:03:00.4]}
2... Nc6 {[%clk 0:02:59.8]} 3. Bb5 {[%clk 0:03:00.9]} 3... a6 {[%clk 0:02:59.8]}
4. Ba4 {[%clk 0:03:01.2]} 4... Nf6 {[%clk 0:02:59.9]} 5. O-O {[%clk 0:03:01.7]}
5... Be7 {[%clk 0:03:00]} 6. Re1 {[%clk 0:03:01.8]} 6... b5 {[%clk 0:02:58]} 7.
Bb3 {[%clk 0:03:01.7]} 7... d6 {[%clk 0:02:58.7]} 8. c3 {[%clk 0:03:00.9]} 8...
O-O {[%clk 0:02:59.3]} 9. d4 {[%clk 0:02:59.9]} 9... Bg4 {[%clk 0:02:57]} 10.
Be3 {[%clk 0:02:59.8]} 10... exd4 {[%clk 0:02:55.6]} 11. cxd4 {[%clk 0:02:59.9]}
11... d5 {[%clk 0:02:56.3]} 12. e5 {[%clk 0:02:58]} 12... Ne4 {[%clk 0:02:56.7]}
13. h3 {[%clk 0:02:55.2]} 13... Bh5 {[%clk 0:02:56.4]} 14. Nc3 {[%clk 0:02:55]}
14... Nxc3 {[%clk 0:02:55]} 15. bxc3 {[%clk 0:02:55.9]} 15... Na5 {[%clk
0:02:55.6]} 16. Bc2 {[%clk 0:02:55.8]} 16... Nc4 {[%clk 0:02:56.2]} 17. Qd3
{[%clk 0:02:53.3]} 17... Bg6 {[%clk 0:02:55.8]} 18. Qe2 {[%clk 0:02:53.3]} 18...
Qd7 {[%clk 0:02:55.3]} 19. Bxg6 {[%clk 0:02:51.5]} 19... fxg6 {[%clk 0:02:55.2]}
20. Nd2 {[%clk 0:02:51.4]} 20... Na3 {[%clk 0:02:05.8]} 21. Rac1 {[%clk
0:02:42.2]} 21... a5 {[%clk 0:02:04.5]} 22. f4 {[%clk 0:02:34.9]} 22... a4
{[%clk 0:01:54.2]} 23. g4 {[%clk 0:02:25.8]} 23... Rac8 {[%clk 0:01:53.7]} 24.
Rf1 {[%clk 0:02:11]} 24... c5 {[%clk 0:01:48.7]} 25. Qf2 {[%clk 0:01:58.3]}
25... c4 {[%clk 0:01:11.3]} 26. f5 {[%clk 0:01:48.2]} 26... b4 {[%clk
0:01:11.5]} 27. e6 {[%clk 0:01:41.8]} 27... Qb7 {[%clk 0:01:11]} 28. Nb1 {[%clk
0:01:19.3]} 28... Nxb1 {[%clk 0:01:03.8]} 29. Rxb1 {[%clk 0:01:19.6]} 29... b3
{[%clk 0:01:04.4]} 30. Qg2 {[%clk 0:00:59.6]} 30... a3 {[%clk 0:01:00.6]} 31.
Rf2 {[%clk 0:00:44.1]} 31... b2 {[%clk 0:00:53.5]} 32. Qg3 {[%clk 0:00:39.4]}
32... Qc7 {[%clk 0:00:28.2]} 33. Bf4 {[%clk 0:00:39.2]} 33... Qa5 {[%clk
0:00:27.9]} 34. Be5 {[%clk 0:00:38.1]} 34... g5 {[%clk 0:00:25.7]} 35. Rf3
{[%clk 0:00:35.5]} 35... h6 {[%clk 0:00:25.6]} 36. Qf2 {[%clk 0:00:35.5]} 36...
Rcd8 {[%clk 0:00:23.4]} 37. f6 {[%clk 0:00:28.4]} 37... gxf6 {[%clk 0:00:21.7]}
38. Bxf6 {[%clk 0:00:28.7]} 38... Bxf6 {[%clk 0:00:19.8]} 39. Rxf6 {[%clk
0:00:28.5]} 39... Qc7 {[%clk 0:00:20.3]} 40. Rf1 {[%clk 0:00:19]} 40... Qg7
{[%clk 0:00:18.6]} 41. Rf7 {[%clk 0:00:15.5]} 41... Rxf7 {[%clk 0:00:16.1]} 42.
exf7+ {[%clk 0:00:16.4]} 42... Kf8 {[%clk 0:00:15.6]} 43. Qf5 {[%clk 0:00:16.7]}
43... h5 {[%clk 0:00:09.7]} 44. Qe6 {[%clk 0:00:16.1]} 44... hxg4 {[%clk
0:00:08.5]} 45. hxg4 {[%clk 0:00:15.5]} 45... Qh7 {[%clk 0:00:09]} 46. Qf6
{[%clk 0:00:14.8]} 46... Rd7 {[%clk 0:00:08.3]} 47. Qe6 {[%clk 0:00:12]} 47...
Rxf7 {[%clk 0:00:07.6]} 48. Qd6+ {[%clk 0:00:11.7]} 48... Kg8 {[%clk 0:00:07.4]}
49. Qd8+ {[%clk 0:00:11.2]} 49... Kg7 {[%clk 0:00:06.9]} 50. Qxg5+ {[%clk
0:00:11.4]} 50... Qg6 {[%clk 0:00:07.3]} 51. Qe5+ {[%clk 0:00:10.5]} 51... Kh7
{[%clk 0:00:07.6]} 52. Qh2+ {[%clk 0:00:10.7]} 52... Kg8 {[%clk 0:00:06.7]} 53.
Qb8+ {[%clk 0:00:10.8]} 53... Kg7 {[%clk 0:00:06.8]} 54. Qe5+ {[%clk 0:00:11]}
54... Kg8 {[%clk 0:00:03.9]} 55. Qb8+ {[%clk 0:00:10.6]} 55... Kh7 {[%clk
0:00:04]} 56. Qh2+ {[%clk 0:00:10.5]} 56... Kg7 {[%clk 0:00:04.3]} 57. Qe5+
{[%clk 0:00:10.5]} 1/2-1/2

[Event "*** Titled Tuesday Blitz"]
[Site "Chess.com"]
[Date "2020.04.28"]
[Round "2"]
[White "Quaternitychess"]
[Black "MarcoRiehle"]
[Result "1-0"]
[WhiteElo "2151"]
[BlackElo "2588"]
[TimeControl "180+1"]
[EndTime "10:19:11 PDT"]
[Termination "Quaternitychess won by resignation"]

1. e4 {[%clk 0:03:00.9]} 1... e5 {[%clk 0:02:59.4]} 2. Nf3 {[%clk 0:03:01]} 2...
Nf6 {[%clk 0:02:59.8]} 3. Nxe5 {[%clk 0:02:59.9]} 3... Nxe4 {[%clk 0:02:59.8]}
4. Qe2 {[%clk 0:02:58.7]} 4... Qe7 {[%clk 0:02:59.9]} 5. Qxe4 {[%clk 0:02:58.3]}
5... d6 {[%clk 0:03:00.2]} 6. d4 {[%clk 0:02:58.8]} 6... dxe5 {[%clk 0:03:00.2]}
7. dxe5 {[%clk 0:02:57.8]} 7... Nc6 {[%clk 0:03:00.2]} 8. Nc3 {[%clk 0:02:58.4]}
8... Qxe5 {[%clk 0:02:59.7]} 9. Qxe5+ {[%clk 0:02:33.5]} 9... Nxe5 {[%clk
0:03:00.6]} 10. Nb5 {[%clk 0:02:14.2]} 10... Bb4+ {[%clk 0:02:55.8]} 11. c3
{[%clk 0:02:14.3]} 11... Ba5 {[%clk 0:02:55.1]} 12. Bf4 {[%clk 0:02:15]} 12...
f6 {[%clk 0:02:51.7]} 13. O-O-O {[%clk 0:02:14.8]} 13... O-O {[%clk 0:02:43.5]}
14. f3 {[%clk 0:01:59.5]} 14... a6 {[%clk 0:02:33]} 15. Nd4 {[%clk 0:01:58.8]}
15... Bb6 {[%clk 0:02:29.7]} 16. Be2 {[%clk 0:01:57.4]} 16... c5 {[%clk
0:02:15.5]} 17. Bxe5 {[%clk 0:01:46.2]} 17... fxe5 {[%clk 0:02:13.8]} 18. Bc4+
{[%clk 0:01:46.9]} 18... Kh8 {[%clk 0:02:11.3]} 19. Ne6 {[%clk 0:01:44.3]} 19...
Re8 {[%clk 0:01:43.1]} 20. Ng5 {[%clk 0:01:43.2]} 20... h6 {[%clk 0:01:39.5]}
21. Nf7+ {[%clk 0:01:40.7]} 21... Kh7 {[%clk 0:01:39.8]} 22. Nd6 {[%clk
0:01:28.5]} 22... Re7 {[%clk 0:01:31.9]} 23. Rhe1 {[%clk 0:01:24.4]} 23... Bc7
{[%clk 0:01:16.6]} 24. a4 {[%clk 0:01:15.7]} 24... Be6 {[%clk 0:00:56.8]} 25.
Bxe6 {[%clk 0:01:11.7]} 25... Rxe6 {[%clk 0:00:56.8]} 26. Ne4 {[%clk 0:01:12.3]}
26... b5 {[%clk 0:00:42.7]} 27. Rd7 {[%clk 0:01:06.7]} 27... Rc6 {[%clk
0:00:40.7]} 28. Kc2 {[%clk 0:01:01.3]} 28... c4 {[%clk 0:00:16.9]} 29. Ra1
{[%clk 0:00:47.4]} 29... Rd8 {[%clk 0:00:15.5]} 30. Rxd8 {[%clk 0:00:46.6]}
30... Bxd8 {[%clk 0:00:15.3]} 31. axb5 {[%clk 0:00:47.3]} 31... axb5 {[%clk
0:00:16.2]} 32. Rd1 {[%clk 0:00:47.1]} 32... Bg5 {[%clk 0:00:14.9]} 33. Rd5
{[%clk 0:00:46.7]} 33... Bf4 {[%clk 0:00:14.5]} 34. g3 {[%clk 0:00:41.2]} 34...
Be3 {[%clk 0:00:15]} 35. Rxb5 {[%clk 0:00:41.4]} 35... Ra6 {[%clk 0:00:12.2]}
36. Rb4 {[%clk 0:00:35.7]} 36... Ra1 {[%clk 0:00:11.1]} 37. Rxc4 {[%clk
0:00:36.1]} 37... Rf1 {[%clk 0:00:09.5]} 38. Kd3 {[%clk 0:00:34.1]} 38... Bc1
{[%clk 0:00:08.3]} 39. Ke2 {[%clk 0:00:30]} 39... Rh1 {[%clk 0:00:07.8]} 40. b4
{[%clk 0:00:29.9]} 40... Rxh2+ {[%clk 0:00:07.9]} 41. Kd3 {[%clk 0:00:30.2]}
41... Rb2 {[%clk 0:00:06]} 42. g4 {[%clk 0:00:25.9]} 42... h5 {[%clk 0:00:02.9]}
43. gxh5 {[%clk 0:00:25.2]} 43... Kh6 {[%clk 0:00:03.3]} 44. Rc7 {[%clk
0:00:24.1]} 44... Bf4 {[%clk 0:00:02.3]} 45. Kc4 {[%clk 0:00:23]} 45... Rb1
{[%clk 0:00:01.5]} 46. b5 {[%clk 0:00:23]} 46... Be3 {[%clk 0:00:01.9]} 47. Nd6
{[%clk 0:00:17.3]} 47... Rf1 {[%clk 0:00:01.2]} 48. Nf5+ {[%clk 0:00:16.9]}
48... Kxh5 {[%clk 0:00:01.7]} 49. Nxe3 {[%clk 0:00:17.6]} 49... Rxf3 {[%clk
0:00:02.2]} 50. Nd5 {[%clk 0:00:18.3]} 50... g5 {[%clk 0:00:02.1]} 51. b6 {[%clk
0:00:18.8]} 51... Rf8 {[%clk 0:00:01.9]} 52. b7 {[%clk 0:00:19.1]} 52... Rb8
{[%clk 0:00:02.4]} 53. Nf6+ {[%clk 0:00:18.3]} 53... Kg6 {[%clk 0:00:02.1]} 54.
Nd7 {[%clk 0:00:17.7]} 54... Rd8 {[%clk 0:00:03]} 55. Rc8 {[%clk 0:00:16.5]}
55... Rxd7 {[%clk 0:00:02.8]} 56. b8=Q {[%clk 0:00:16.2]} 56... Rg7 {[%clk
0:00:03.4]} 57. Qxe5 {[%clk 0:00:16]} 57... g4 {[%clk 0:00:03.1]} 58. Qxg7+
{[%clk 0:00:15]} 58... Kxg7 {[%clk 0:00:03.2]} 59. Kd3 {[%clk 0:00:15.8]} 59...
g3 {[%clk 0:00:02.7]} 60. Ke3 {[%clk 0:00:16.4]} 60... g2 {[%clk 0:00:03.6]} 61.
Kf2 {[%clk 0:00:16.5]} 1-0